[Event "Titled Tuesday Blitz August 15 Early 2023"]
[White "Aronian, Levon"]
[Black "Tabatabaei, M. Amin"]
[WhiteFideId "13300474"]
[BlackFideId "12521213"]
[WhiteElo "3044"]
[BlackElo "3009"]
[Result "1-0"]
[Round "6"]
[TimeControl "180+1"]
[Date "2023.08.15"]
[WhiteClock "0:00:15"]
[BlackClock "0:00:01"]
[Board "3"]

1. e4 {[%clk 0:03:00]}  c5 {[%clk 0:02:59]} 2. Nf3 {[%clk 0:03:01]}  d6 {[%clk 0:03:00]} 3. c3 {[%clk 0:03:01]}  Nf6 {[%clk 0:03:00]} 4. Bc4 {[%clk 0:03:01]}  Nxe4 {[%clk 0:02:52]} 5. Qa4+ {[%clk 0:03:00]}  Nc6 {[%clk 0:02:51]} 6. Bxf7+ {[%clk 0:03:01]}  Kxf7 {[%clk 0:02:52]} 7. Qxe4 {[%clk 0:03:01]}  e5 {[%clk 0:02:45]} 8. d4 {[%clk 0:02:57]}  h6 {[%clk 0:01:42]} 9. dxe5 {[%clk 0:02:42]}  d5 {[%clk 0:01:42]} 10. Qf4+ {[%clk 0:02:41]}  Kg8 {[%clk 0:01:43]} 11. Na3 {[%clk 0:02:31]}  Be6 {[%clk 0:01:39]} 12. Nb5 {[%clk 0:02:24]}  Qd7 {[%clk 0:01:31]} 13. O-O {[%clk 0:02:18]}  Be7 {[%clk 0:01:20]} 14. Re1 {[%clk 0:02:14]}  Rf8 {[%clk 0:01:18]} 15. Qg3 {[%clk 0:02:15]}  Kh7 {[%clk 0:01:07]} 16. Nd6 {[%clk 0:02:11]}  g5 {[%clk 0:01:07]} 17. b4 {[%clk 0:01:51]}  g4 {[%clk 0:00:45]} 18. Nh4 {[%clk 0:01:40]}  c4 {[%clk 0:00:37]} 19. b5 {[%clk 0:01:20]}  Nd8 {[%clk 0:00:26]} 20. f4 {[%clk 0:01:11]}  Bxh4 {[%clk 0:00:04]} 21. Qxh4 {[%clk 0:01:10]}  Bf5 {[%clk 0:00:05]} 22. Be3 {[%clk 0:00:51]}  Rhg8 {[%clk 0:00:04]} 23. Rad1 {[%clk 0:00:47]}  Qe6 {[%clk 0:00:03]} 24. Bxa7 {[%clk 0:00:42]}  g3 {[%clk 0:00:03]} 25. h3 {[%clk 0:00:41]}  Nf7 {[%clk 0:00:02]} 26. Nxf5 {[%clk 0:00:35]}  Qxf5 {[%clk 0:00:03]} 27. Rxd5 {[%clk 0:00:35]}  Qc2 {[%clk 0:00:03]} 28. e6 {[%clk 0:00:27]}  Re8 {[%clk 0:00:02]} 29. Rd7 {[%clk 0:00:24]}  Rg7 {[%clk 0:00:02]} 30. Qh5 {[%clk 0:00:19]}  Rxe6 {[%clk 0:00:02]} 31. Rxe6 {[%clk 0:00:18]}  Qxa2 {[%clk 0:00:01]} 32. Qf5+ {[%clk 0:00:15]}  Kg8 {[%clk 0:00:01]} 33. Re8# {[%clk 0:00:15]} 1-0


[Site "https://www.chess.com"]

[Event "Titled Tuesday Blitz August 15 Early 2023"]
[White "Makarian, Rudik"]
[Black "Shimanov, Aleksandr"]
[WhiteFideId "44105681"]
[BlackFideId "4198603"]
[WhiteElo "2975"]
[BlackElo "3026"]
[Result "1/2-1/2"]
[Round "6"]
[TimeControl "180+1"]
[Date "2023.08.15"]
[WhiteClock "0:00:02"]
[BlackClock "0:00:10"]
[Board "4"]

1. d4 {[%clk 0:03:00]}  d5 {[%clk 0:02:55]} 2. c4 {[%clk 0:03:00]}  c6 {[%clk 0:02:54]} 3. Nf3 {[%clk 0:03:00]}  Nf6 {[%clk 0:02:54]} 4. Nc3 {[%clk 0:03:01]}  a6 {[%clk 0:02:52]} 5. g3 {[%clk 0:02:59]}  b5 {[%clk 0:02:52]} 6. b3 {[%clk 0:02:56]}  Bf5 {[%clk 0:02:52]} 7. Bg2 {[%clk 0:02:57]}  e6 {[%clk 0:02:51]} 8. O-O {[%clk 0:02:56]}  Nbd7 {[%clk 0:02:49]} 9. Nh4 {[%clk 0:02:51]}  Bg6 {[%clk 0:02:46]} 10. Nxg6 {[%clk 0:02:51]}  hxg6 {[%clk 0:02:47]} 11. cxd5 {[%clk 0:02:44]}  cxd5 {[%clk 0:02:47]} 12. e4 {[%clk 0:02:45]}  Rc8 {[%clk 0:02:43]} 13. Bb2 {[%clk 0:01:50]}  b4 {[%clk 0:02:15]} 14. Na4 {[%clk 0:01:50]}  dxe4 {[%clk 0:02:15]} 15. Qe2 {[%clk 0:01:49]}  Qa5 {[%clk 0:02:06]} 16. Rac1 {[%clk 0:01:46]}  Rd8 {[%clk 0:02:05]} 17. Bxe4 {[%clk 0:01:39]}  Be7 {[%clk 0:02:01]} 18. Bf3 {[%clk 0:01:37]}  O-O {[%clk 0:02:00]} 19. Rc6 {[%clk 0:01:26]}  Nb8 {[%clk 0:01:59]} 20. Rc4 {[%clk 0:01:25]}  Nd5 {[%clk 0:01:59]} 21. Rfc1 {[%clk 0:01:25]}  Bf6 {[%clk 0:01:59]} 22. Kg2 {[%clk 0:01:25]}  Qb5 {[%clk 0:01:54]} 23. h4 {[%clk 0:01:17]}  Nd7 {[%clk 0:01:47]} 24. Qc2 {[%clk 0:01:09]}  N7b6 {[%clk 0:01:35]} 25. Rc5 {[%clk 0:00:58]}  Qd7 {[%clk 0:01:35]} 26. Nxb6 {[%clk 0:00:47]}  Nxb6 {[%clk 0:01:35]} 27. Rc6 {[%clk 0:00:37]}  Nd5 {[%clk 0:01:23]} 28. Qc5 {[%clk 0:00:31]}  Nc3 {[%clk 0:01:20]} 29. Bxc3 {[%clk 0:00:25]}  bxc3 {[%clk 0:01:20]} 30. Qxc3 {[%clk 0:00:25]}  Bxd4 {[%clk 0:01:21]} 31. Qc4 {[%clk 0:00:25]}  a5 {[%clk 0:01:20]} 32. Rd1 {[%clk 0:00:26]}  Qa7 {[%clk 0:01:20]} 33. Rc7 {[%clk 0:00:22]}  Qb6 {[%clk 0:01:20]} 34. Rb7 {[%clk 0:00:11]}  Qd6 {[%clk 0:01:20]} 35. Rc7 {[%clk 0:00:09]}  Qe5 {[%clk 0:01:15]} 36. Rd2 {[%clk 0:00:09]}  Bb6 {[%clk 0:01:03]} 37. Rxd8 {[%clk 0:00:07]}  Rxd8 {[%clk 0:01:04]} 38. Rc8 {[%clk 0:00:07]}  Rxc8 {[%clk 0:01:05]} 39. Qxc8+ {[%clk 0:00:07]}  Kh7 {[%clk 0:01:05]} 40. Qc2 {[%clk 0:00:08]}  Qd4 {[%clk 0:01:05]} 41. h5 {[%clk 0:00:07]}  f5 {[%clk 0:01:06]} 42. hxg6+ {[%clk 0:00:07]}  Kxg6 {[%clk 0:01:07]} 43. Qe2 {[%clk 0:00:07]}  Kf6 {[%clk 0:01:07]} 44. Bc6 {[%clk 0:00:06]}  g5 {[%clk 0:01:06]} 45. Bb5 {[%clk 0:00:05]}  e5 {[%clk 0:01:05]} 46. Bc4 {[%clk 0:00:05]}  e4 {[%clk 0:01:05]} 47. Qc2 {[%clk 0:00:05]}  f4 {[%clk 0:01:04]} 48. gxf4 {[%clk 0:00:05]}  gxf4 {[%clk 0:01:05]} 49. Bf1 {[%clk 0:00:03]}  f3+ {[%clk 0:01:05]} 50. Kg1 {[%clk 0:00:03]}  Qd6 {[%clk 0:01:05]} 51. Qxe4 {[%clk 0:00:02]}  Qg3+ {[%clk 0:01:05]} 52. Kh1 {[%clk 0:00:03]}  Bxf2 {[%clk 0:01:01]} 53. Qc6+ {[%clk 0:00:03]}  Ke5 {[%clk 0:01:02]} 54. Qc7+ {[%clk 0:00:03]}  Kd4 {[%clk 0:01:01]} 55. Qxg3 {[%clk 0:00:03]}  Bxg3 {[%clk 0:01:02]} 56. Bb5 {[%clk 0:00:02]}  Bf2 {[%clk 0:00:31]} 57. Kh2 {[%clk 0:00:02]}  Ke3 {[%clk 0:00:31]} 58. Kh3 {[%clk 0:00:02]}  Kf4 {[%clk 0:00:31]} 59. Bc6 {[%clk 0:00:02]}  Bc5 {[%clk 0:00:31]} 60. a4 {[%clk 0:00:03]}  Ke3 {[%clk 0:00:30]} 61. Bb7 {[%clk 0:00:03]}  Ke2 {[%clk 0:00:28]} 62. Ba6+ {[%clk 0:00:02]}  Ke1 {[%clk 0:00:28]} 63. Kg3 {[%clk 0:00:01]}  f2 {[%clk 0:00:10]} 64. Kg2 {[%clk 0:00:02]} 1/2-1/2


[Site "https://www.chess.com"]

[Event "Titled Tuesday Blitz August 15 Early 2023"]
[White "Chigaev, Maksim"]
[Black "Fedoseev, Vladimir"]
[WhiteFideId "4108116"]
[BlackFideId "24130737"]
[WhiteElo "2949"]
[BlackElo "3105"]
[Result "0-1"]
[Round "6"]
[TimeControl "180+1"]
[Date "2023.08.15"]
[WhiteClock "0:00:00"]
[BlackClock "0:00:05"]
[Board "7"]

1. d4 {[%clk 0:03:00]}  Nf6 {[%clk 0:02:21]} 2. Nf3 {[%clk 0:03:00]}  g6 {[%clk 0:02:21]} 3. g3 {[%clk 0:02:57]}  Bg7 {[%clk 0:02:21]} 4. Bg2 {[%clk 0:02:57]}  O-O {[%clk 0:02:21]} 5. O-O {[%clk 0:02:58]}  d6 {[%clk 0:02:22]} 6. Re1 {[%clk 0:02:52]}  Nc6 {[%clk 0:02:20]} 7. d5 {[%clk 0:02:45]}  Nb4 {[%clk 0:02:13]} 8. e4 {[%clk 0:02:44]}  e5 {[%clk 0:02:09]} 9. a3 {[%clk 0:02:30]}  Na6 {[%clk 0:02:09]} 10. b4 {[%clk 0:02:29]}  c5 {[%clk 0:02:03]} 11. c4 {[%clk 0:02:21]}  cxb4 {[%clk 0:01:59]} 12. axb4 {[%clk 0:02:22]}  Nxb4 {[%clk 0:01:59]} 13. Ba3 {[%clk 0:02:22]}  Na6 {[%clk 0:01:59]} 14. Nc3 {[%clk 0:02:23]}  Re8 {[%clk 0:01:56]} 15. Nd2 {[%clk 0:02:08]}  b6 {[%clk 0:01:52]} 16. Nb5 {[%clk 0:01:59]}  Bf8 {[%clk 0:01:49]} 17. Qa4 {[%clk 0:02:00]}  h5 {[%clk 0:01:25]} 18. f4 {[%clk 0:01:48]}  Nc5 {[%clk 0:01:10]} 19. Bxc5 {[%clk 0:01:42]}  dxc5 {[%clk 0:01:11]} 20. Nf3 {[%clk 0:01:39]}  exf4 {[%clk 0:00:34]} 21. e5 {[%clk 0:01:38]}  Ng4 {[%clk 0:00:35]} 22. gxf4 {[%clk 0:01:33]}  a6 {[%clk 0:00:35]} 23. e6 {[%clk 0:01:01]}  fxe6 {[%clk 0:00:33]} 24. Nc7 {[%clk 0:01:01]}  Bd7 {[%clk 0:00:33]} 25. Qc2 {[%clk 0:01:01]}  Qxc7 {[%clk 0:00:30]} 26. Qxg6+ {[%clk 0:01:01]}  Bg7 {[%clk 0:00:31]} 27. d6 {[%clk 0:00:10]}  Qxd6 {[%clk 0:00:13]} 28. Rad1 {[%clk 0:00:10]}  Qe7 {[%clk 0:00:13]} 29. Ng5 {[%clk 0:00:11]}  Nf6 {[%clk 0:00:11]} 30. Re5 {[%clk 0:00:04]}  Red8 {[%clk 0:00:10]} 31. Rde1 {[%clk 0:00:03]}  Rac8 {[%clk 0:00:08]} 32. Nxe6 {[%clk 0:00:03]}  Bxe6 {[%clk 0:00:08]} 33. Rxe6 {[%clk 0:00:04]}  Qf7 {[%clk 0:00:09]} 34. Qg5 {[%clk 0:00:04]}  Re8 {[%clk 0:00:08]} 35. f5 {[%clk 0:00:04]}  Rxe6 {[%clk 0:00:07]} 36. Rxe6 {[%clk 0:00:04]}  Re8 {[%clk 0:00:07]} 37. Qe3 {[%clk 0:00:01]}  Rxe6 {[%clk 0:00:07]} 38. fxe6 {[%clk 0:00:02]}  Qe7 {[%clk 0:00:08]} 39. Qe5 {[%clk 0:00:03]}  Ng4 {[%clk 0:00:06]} 40. Qb8+ {[%clk 0:00:04]}  Bf8 {[%clk 0:00:04]} 41. h3 {[%clk 0:00:04]}  Nf6 {[%clk 0:00:03]} 42. Qxb6 {[%clk 0:00:05]}  Qd6 {[%clk 0:00:04]} 43. Qb7 {[%clk 0:00:01]}  Qxe6 {[%clk 0:00:04]} 44. Bf3 {[%clk 0:00:02]}  Qe1+ {[%clk 0:00:03]} 45. Kg2 {[%clk 0:00:02]}  Qd2+ {[%clk 0:00:04]} 46. Kh1 {[%clk 0:00:03]}  Bd6 {[%clk 0:00:04]} 47. Qc8+ {[%clk 0:00:02]}  Kg7 {[%clk 0:00:05]} 48. Qb7+ {[%clk 0:00:00]}  Kh6 {[%clk 0:00:05]} 0-1


[Site "https://www.chess.com"]

[Event "Titled Tuesday Blitz August 15 Early 2023"]
[White "So, Wesley"]
[Black "Lagarde, Maxime"]
[WhiteFideId "5202213"]
[BlackFideId "662399"]
[WhiteElo "3130"]
[BlackElo "2839"]
[Result "0-1"]
[Round "6"]
[TimeControl "180+1"]
[Date "2023.08.15"]
[WhiteClock "0:00:00"]
[BlackClock "0:00:19"]
[Board "10"]

1. b3 {[%clk 0:02:13]}  Nc6 {[%clk 0:03:00]} 2. d4 {[%clk 0:02:09]}  e5 {[%clk 0:03:00]} 3. dxe5 {[%clk 0:02:05]}  f6 {[%clk 0:02:59]} 4. exf6 {[%clk 0:01:58]}  Qxf6 {[%clk 0:03:00]} 5. c3 {[%clk 0:01:57]}  Bc5 {[%clk 0:03:00]} 6. e3 {[%clk 0:01:57]}  Nge7 {[%clk 0:03:00]} 7. Qh5+ {[%clk 0:01:56]}  Ng6 {[%clk 0:02:54]} 8. Qxc5 {[%clk 0:01:57]}  d6 {[%clk 0:02:54]} 9. Qb5 {[%clk 0:01:55]}  O-O {[%clk 0:02:53]} 10. Nf3 {[%clk 0:01:54]}  Nge5 {[%clk 0:02:52]} 11. Be2 {[%clk 0:01:52]}  Bg4 {[%clk 0:02:52]} 12. Nbd2 {[%clk 0:01:50]}  a6 {[%clk 0:02:48]} 13. Qd5+ {[%clk 0:01:44]}  Be6 {[%clk 0:02:48]} 14. Qe4 {[%clk 0:01:44]}  d5 {[%clk 0:02:43]} 15. Qa4 {[%clk 0:01:36]}  b5 {[%clk 0:02:29]} 16. Qa3 {[%clk 0:01:34]}  b4 {[%clk 0:02:29]} 17. cxb4 {[%clk 0:01:31]}  Nxf3+ {[%clk 0:02:29]} 18. Nxf3 {[%clk 0:01:27]}  Qxa1 {[%clk 0:02:29]} 19. O-O {[%clk 0:01:24]}  Qf6 {[%clk 0:02:19]} 20. Bb2 {[%clk 0:01:17]}  Qe7 {[%clk 0:02:17]} 21. Nd4 {[%clk 0:00:56]}  Nxd4 {[%clk 0:01:56]} 22. Bxd4 {[%clk 0:00:57]}  Qg5 {[%clk 0:01:56]} 23. f4 {[%clk 0:00:54]}  Qg6 {[%clk 0:01:55]} 24. Bf3 {[%clk 0:00:50]}  c6 {[%clk 0:01:53]} 25. Rc1 {[%clk 0:00:46]}  Bg4 {[%clk 0:01:51]} 26. Bxg4 {[%clk 0:00:44]}  Qxg4 {[%clk 0:01:52]} 27. h3 {[%clk 0:00:42]}  Qe6 {[%clk 0:01:17]} 28. Qa5 {[%clk 0:00:36]}  Rf7 {[%clk 0:01:07]} 29. Qb6 {[%clk 0:00:32]}  Rc8 {[%clk 0:01:07]} 30. Qxa6 {[%clk 0:00:31]}  g5 {[%clk 0:00:56]} 31. fxg5 {[%clk 0:00:29]}  h6 {[%clk 0:00:46]} 32. gxh6 {[%clk 0:00:28]}  Kh7 {[%clk 0:00:46]} 33. Qd3+ {[%clk 0:00:17]}  Kxh6 {[%clk 0:00:43]} 34. b5 {[%clk 0:00:17]}  cxb5 {[%clk 0:00:36]} 35. Rxc8 {[%clk 0:00:13]}  Qxc8 {[%clk 0:00:37]} 36. Be5 {[%clk 0:00:13]}  Qf5 {[%clk 0:00:35]} 37. Bf4+ {[%clk 0:00:12]}  Kg6 {[%clk 0:00:33]} 38. Qxb5 {[%clk 0:00:12]}  d4 {[%clk 0:00:31]} 39. Qc6+ {[%clk 0:00:10]}  Kh7 {[%clk 0:00:30]} 40. Qh6+ {[%clk 0:00:10]}  Kg8 {[%clk 0:00:30]} 41. Qd6 {[%clk 0:00:07]}  d3 {[%clk 0:00:25]} 42. Qd8+ {[%clk 0:00:06]}  Rf8 {[%clk 0:00:20]} 43. Qd6 {[%clk 0:00:04]}  Rf6 {[%clk 0:00:20]} 44. Qd8+ {[%clk 0:00:04]}  Rf8 {[%clk 0:00:20]} 45. Qa5 {[%clk 0:00:00]}  Qxa5 {[%clk 0:00:19]} 0-1


[Site "https://www.chess.com"]

[Event "Titled Tuesday Blitz August 15 Early 2023"]
[White "Duda, Jan-Krzysztof"]
[Black "Mekhitarian, Krikor Sevag"]
[WhiteFideId "1170546"]
[BlackFideId "2107660"]
[WhiteElo "3036"]
[BlackElo "2803"]
[Result "1-0"]
[Round "6"]
[TimeControl "180+1"]
[Date "2023.08.15"]
[WhiteClock "0:01:01"]
[BlackClock "0:00:00"]
[Board "15"]

1. e4 {[%clk 0:03:00]}  e6 {[%clk 0:02:59]} 2. d4 {[%clk 0:03:00]}  d5 {[%clk 0:03:00]} 3. Nc3 {[%clk 0:02:59]}  Nf6 {[%clk 0:02:59]} 4. e5 {[%clk 0:02:58]}  Nfd7 {[%clk 0:02:59]} 5. Nce2 {[%clk 0:02:59]}  c5 {[%clk 0:02:58]} 6. c3 {[%clk 0:02:59]}  Nc6 {[%clk 0:02:58]} 7. f4 {[%clk 0:03:00]}  Be7 {[%clk 0:02:51]} 8. Nf3 {[%clk 0:03:00]}  O-O {[%clk 0:02:49]} 9. Be3 {[%clk 0:02:59]}  b5 {[%clk 0:02:45]} 10. a3 {[%clk 0:02:57]}  a5 {[%clk 0:02:44]} 11. h4 {[%clk 0:02:53]}  f6 {[%clk 0:02:43]} 12. h5 {[%clk 0:02:53]}  Ba6 {[%clk 0:02:23]} 13. Ng3 {[%clk 0:02:31]}  Qb6 {[%clk 0:01:56]} 14. Qd2 {[%clk 0:02:07]}  b4 {[%clk 0:01:52]} 15. f5 {[%clk 0:02:02]}  bxc3 {[%clk 0:01:19]} 16. bxc3 {[%clk 0:02:03]}  fxe5 {[%clk 0:01:09]} 17. fxe6 {[%clk 0:01:59]}  e4 {[%clk 0:01:09]} 18. exd7 {[%clk 0:01:49]}  exf3 {[%clk 0:01:04]} 19. dxc5 {[%clk 0:01:50]}  Qc7 {[%clk 0:01:01]} 20. Qxd5+ {[%clk 0:01:40]}  Kh8 {[%clk 0:01:02]} 21. Ne4 {[%clk 0:01:34]}  Bxf1 {[%clk 0:00:49]} 22. Kxf1 {[%clk 0:01:35]}  Rad8 {[%clk 0:00:24]} 23. Rd1 {[%clk 0:01:34]}  Ne5 {[%clk 0:00:22]} 24. h6 {[%clk 0:01:11]}  Rxd7 {[%clk 0:00:20]} 25. hxg7+ {[%clk 0:01:12]}  Kxg7 {[%clk 0:00:20]} 26. Nd6 {[%clk 0:01:12]}  Bxd6 {[%clk 0:00:14]} 27. cxd6 {[%clk 0:01:11]}  Qc4+ {[%clk 0:00:08]} 28. Qxc4 {[%clk 0:01:06]}  Nxc4 {[%clk 0:00:09]} 29. Bh6+ {[%clk 0:01:06]}  Kf7 {[%clk 0:00:05]} 30. Bxf8 {[%clk 0:01:01]}  Ne3+ {[%clk 0:00:04]} 31. Kf2 {[%clk 0:01:01]}  Nxd1+ {[%clk 0:00:04]} 32. Rxd1 {[%clk 0:01:01]}  Kxf8 {[%clk 0:00:04]} 33. gxf3 {[%clk 0:00:59]}  Kf7 {[%clk 0:00:03]} 34. c4 {[%clk 0:01:00]}  Ke6 {[%clk 0:00:00]} 35. c5 {[%clk 0:01:01]} 1-0


[Site "https://www.chess.com"]

[Event "Titled Tuesday Blitz August 15 Early 2023"]
[White "Yanchenko, Roman"]
[Black "Drygalov, Sergey"]
[WhiteFideId "4137329"]
[BlackFideId "24171743"]
[WhiteElo "2780"]
[BlackElo "2998"]
[Result "1-0"]
[Round "6"]
[TimeControl "180+1"]
[Date "2023.08.15"]
[WhiteClock "0:00:22"]
[BlackClock "0:00:03"]
[Board "18"]

1. d4 {[%clk 0:03:00]}  Nf6 {[%clk 0:02:59]} 2. Bf4 {[%clk 0:03:00]}  d5 {[%clk 0:02:59]} 3. e3 {[%clk 0:03:00]}  c5 {[%clk 0:02:59]} 4. Nf3 {[%clk 0:02:58]}  Nc6 {[%clk 0:02:59]} 5. a3 {[%clk 0:02:57]}  Bg4 {[%clk 0:02:54]} 6. c3 {[%clk 0:02:56]}  e6 {[%clk 0:02:53]} 7. Nbd2 {[%clk 0:02:54]}  Bd6 {[%clk 0:02:51]} 8. dxc5 {[%clk 0:02:54]}  Bxc5 {[%clk 0:02:45]} 9. h3 {[%clk 0:02:54]}  Bh5 {[%clk 0:02:45]} 10. Be2 {[%clk 0:02:54]}  Bd6 {[%clk 0:02:36]} 11. Bxd6 {[%clk 0:02:51]}  Qxd6 {[%clk 0:02:37]} 12. O-O {[%clk 0:02:50]}  O-O {[%clk 0:02:37]} 13. c4 {[%clk 0:02:47]}  Rad8 {[%clk 0:02:33]} 14. cxd5 {[%clk 0:02:46]}  Qxd5 {[%clk 0:02:32]} 15. Qc2 {[%clk 0:02:31]}  Ne5 {[%clk 0:02:26]} 16. Rfd1 {[%clk 0:02:22]}  Bg6 {[%clk 0:02:07]} 17. Qa4 {[%clk 0:02:19]}  Nd3 {[%clk 0:02:06]} 18. Bxd3 {[%clk 0:02:06]}  Bxd3 {[%clk 0:02:06]} 19. Nf1 {[%clk 0:01:56]}  a6 {[%clk 0:01:49]} 20. Ng3 {[%clk 0:01:53]}  Qb5 {[%clk 0:01:45]} 21. Qxb5 {[%clk 0:01:51]}  Bxb5 {[%clk 0:01:46]} 22. Rxd8 {[%clk 0:01:50]}  Rxd8 {[%clk 0:01:46]} 23. Rc1 {[%clk 0:01:50]}  h6 {[%clk 0:01:41]} 24. Nd4 {[%clk 0:01:46]}  Bd7 {[%clk 0:01:25]} 25. f4 {[%clk 0:01:44]}  Kf8 {[%clk 0:01:15]} 26. Kf2 {[%clk 0:01:37]}  Ke7 {[%clk 0:01:11]} 27. Rc7 {[%clk 0:01:36]}  Rb8 {[%clk 0:01:06]} 28. e4 {[%clk 0:01:33]}  Ne8 {[%clk 0:01:04]} 29. Rc3 {[%clk 0:01:32]}  Rc8 {[%clk 0:00:59]} 30. Rxc8 {[%clk 0:01:31]}  Bxc8 {[%clk 0:01:00]} 31. e5 {[%clk 0:01:28]}  b6 {[%clk 0:00:57]} 32. Ne4 {[%clk 0:01:10]}  Bb7 {[%clk 0:00:57]} 33. Nc3 {[%clk 0:01:10]}  Nc7 {[%clk 0:00:54]} 34. h4 {[%clk 0:01:09]}  h5 {[%clk 0:00:38]} 35. g3 {[%clk 0:01:08]}  g6 {[%clk 0:00:36]} 36. Ke3 {[%clk 0:01:07]}  Kd7 {[%clk 0:00:36]} 37. Kd3 {[%clk 0:01:05]}  Bg2 {[%clk 0:00:34]} 38. Nc2 {[%clk 0:00:58]}  Kc8 {[%clk 0:00:29]} 39. Ne3 {[%clk 0:00:57]}  Bc6 {[%clk 0:00:29]} 40. Nc4 {[%clk 0:00:56]}  Kd7 {[%clk 0:00:12]} 41. Nxb6+ {[%clk 0:00:56]}  Ke7 {[%clk 0:00:13]} 42. Nc8+ {[%clk 0:00:55]}  Kd7 {[%clk 0:00:13]} 43. Nd6 {[%clk 0:00:50]}  f6 {[%clk 0:00:12]} 44. Kd4 {[%clk 0:00:50]}  Ke7 {[%clk 0:00:10]} 45. Nc8+ {[%clk 0:00:48]}  Kf7 {[%clk 0:00:10]} 46. Kc5 {[%clk 0:00:47]}  Bf3 {[%clk 0:00:10]} 47. Kb6 {[%clk 0:00:39]}  Ne8 {[%clk 0:00:10]} 48. Nd6+ {[%clk 0:00:38]}  Ke7 {[%clk 0:00:07]} 49. Nxe8 {[%clk 0:00:38]}  Kxe8 {[%clk 0:00:07]} 50. Kxa6 {[%clk 0:00:29]}  fxe5 {[%clk 0:00:06]} 51. fxe5 {[%clk 0:00:29]}  Kf7 {[%clk 0:00:06]} 52. Kb6 {[%clk 0:00:23]}  g5 {[%clk 0:00:06]} 53. Nb5 {[%clk 0:00:22]}  Kg6 {[%clk 0:00:06]} 54. Nd6 {[%clk 0:00:22]}  Bd5 {[%clk 0:00:03]} 55. b4 {[%clk 0:00:22]} 1-0


[Site "https://www.chess.com"]

[Event "Titled Tuesday Blitz August 15 Early 2023"]
[White "Matlakov, Maxim"]
[Black "Petkov, Momchil"]
[WhiteFideId "4168003"]
[BlackFideId "2921642"]
[WhiteElo "2972"]
[BlackElo "2773"]
[Result "1-0"]
[Round "6"]
[TimeControl "180+1"]
[Date "2023.08.15"]
[WhiteClock "0:00:56"]
[BlackClock "0:00:09"]
[Board "21"]

1. d4 {[%clk 0:03:00]}  Nf6 {[%clk 0:02:57]} 2. Nf3 {[%clk 0:03:01]}  d5 {[%clk 0:02:57]} 3. Bg5 {[%clk 0:03:01]}  Ne4 {[%clk 0:02:55]} 4. Bh4 {[%clk 0:03:01]}  c5 {[%clk 0:02:55]} 5. e3 {[%clk 0:03:02]}  Nc6 {[%clk 0:02:52]} 6. Nbd2 {[%clk 0:03:01]}  Nxd2 {[%clk 0:02:36]} 7. Qxd2 {[%clk 0:03:02]}  cxd4 {[%clk 0:02:34]} 8. exd4 {[%clk 0:03:02]}  Bg4 {[%clk 0:02:28]} 9. Ne5 {[%clk 0:02:57]}  Bd7 {[%clk 0:02:03]} 10. c3 {[%clk 0:02:56]}  Qc7 {[%clk 0:01:58]} 11. Bg3 {[%clk 0:02:53]}  Nxe5 {[%clk 0:01:55]} 12. Bxe5 {[%clk 0:02:54]}  Qb6 {[%clk 0:01:54]} 13. Bd3 {[%clk 0:02:54]}  e6 {[%clk 0:01:28]} 14. O-O {[%clk 0:02:53]}  f6 {[%clk 0:01:26]} 15. Bg3 {[%clk 0:02:53]}  Bd6 {[%clk 0:01:26]} 16. Rfe1 {[%clk 0:02:39]}  O-O {[%clk 0:01:26]} 17. Qc2 {[%clk 0:02:37]}  h6 {[%clk 0:01:12]} 18. Re3 {[%clk 0:02:35]}  Rae8 {[%clk 0:00:44]} 19. Rae1 {[%clk 0:02:34]}  Qc7 {[%clk 0:00:44]} 20. Bh7+ {[%clk 0:02:33]}  Kh8 {[%clk 0:00:44]} 21. Bg6 {[%clk 0:02:34]}  Re7 {[%clk 0:00:44]} 22. Qe2 {[%clk 0:02:32]}  Bxg3 {[%clk 0:00:41]} 23. hxg3 {[%clk 0:02:30]}  Qd6 {[%clk 0:00:38]} 24. g4 {[%clk 0:02:19]}  Be8 {[%clk 0:00:36]} 25. Bf5 {[%clk 0:02:13]}  Bd7 {[%clk 0:00:31]} 26. Bxe6 {[%clk 0:02:11]}  Rfe8 {[%clk 0:00:31]} 27. Bxd7 {[%clk 0:01:26]}  Rxe3 {[%clk 0:00:32]} 28. fxe3 {[%clk 0:01:20]}  Qxd7 {[%clk 0:00:32]} 29. Qf3 {[%clk 0:01:18]}  Re4 {[%clk 0:00:33]} 30. c4 {[%clk 0:01:15]}  Qxg4 {[%clk 0:00:16]} 31. cxd5 {[%clk 0:01:09]}  Kg8 {[%clk 0:00:14]} 32. Qxg4 {[%clk 0:01:01]}  Rxg4 {[%clk 0:00:14]} 33. Rc1 {[%clk 0:01:00]}  Re4 {[%clk 0:00:12]} 34. Kf2 {[%clk 0:00:59]}  Kf7 {[%clk 0:00:11]} 35. Rc7+ {[%clk 0:00:58]}  Kf8 {[%clk 0:00:12]} 36. Rxb7 {[%clk 0:00:58]}  Re7 {[%clk 0:00:10]} 37. Rxe7 {[%clk 0:00:55]}  Kxe7 {[%clk 0:00:11]} 38. e4 {[%clk 0:00:55]}  Kd6 {[%clk 0:00:11]} 39. g4 {[%clk 0:00:55]}  g6 {[%clk 0:00:10]} 40. Kf3 {[%clk 0:00:55]}  f5 {[%clk 0:00:11]} 41. gxf5 {[%clk 0:00:55]}  gxf5 {[%clk 0:00:12]} 42. exf5 {[%clk 0:00:55]}  Kxd5 {[%clk 0:00:13]} 43. Kg4 {[%clk 0:00:56]}  a5 {[%clk 0:00:12]} 44. Kh5 {[%clk 0:00:56]}  a4 {[%clk 0:00:10]} 45. Kxh6 {[%clk 0:00:56]}  Kxd4 {[%clk 0:00:10]} 46. f6 {[%clk 0:00:56]}  Kd3 {[%clk 0:00:09]} 47. f7 {[%clk 0:00:56]} 1-0


[Site "https://www.chess.com"]